Workbook

Sheet Pasiūlymas
A2: PIRKIMO SĄLYGŲ PRIEDAS "PASIŪLYMŲ FORMA"
A4: DEZINFEKCINĖS MEDŽIAGOS
A6: Kam: | B6: LSMU Kauno ligoninė
A8: Data: | B8: 2021-02-26
A9: Nr.: | B9: 526314
A10: Vieta: | B10: Kaunas
A12: Tiekėjo pavadinimas / Ūkio subjektų grupės nariai: | C12: L.R.Tamulio firma „Meditalika“
A13: Tiekėjo kodas (-ai): | C13: 134565744
A14: Tiekėjo adresas (-ai): | C14: Radvilų Dvaro g.4, LT-48320 Kaunas
A15: Tiekėjo PVM mokėtojo kodas(-ai): | C15: LT345657415
A16: Tiekėjo / Ūkio subjektų grupės atsakingo partnerio sąskaitos numeris, banko pavadinimas ir banko kodas (-ai): | C16: LT097044060002905474, AB SEB Bankas, banko kodas 70440
A17: Asmens atsakingo už pasiūlymą vardas, pavardė: | C17: Rita Rutkevičienė
A18: Asmens atsakingo už pasiūlymą telefono numeris, el. pašto adresas: | C18: +370 37 22 22 23/ +370 610 17000
A19: Tiekėjo / Ūkio subjektų grupės, laimėjimo atveju, pasirašančio sutartį asmens vardas, pavardė, pareigos: | C19: Komercijos direktorė Rita Rutkevičienė
A20: Tiekėjo / Ūkio subjektų grupės, laimėjimo atvjeu, už sutarties vykdymą atsakingo asmens vardas, pavardė, telefono numeris, elektroninio pašto adresas: | C20: Administratorė Rasa Andronavičienė, tel., nr. +370 37 22 22 23/ 32 45 01, el.p. info@meditalika.lt
A21: (1) Tiekėjo / Ūkio subjektų grupės narių, (2) ūkio subjektų, kurių pajėgumais remiamasi, ir (3) jei pašalinimo pagrindai taikomi visiems subtiekėjams - subtiekėjų, kolegialaus priežiūros organo (Stebėtojų tarybos) ir (ar) kolegialaus valdymo organo (Valdybos) narių sąrašas (jei sudaryta) ir (ar) asmuo, kuriam suteikti VPĮ 46 str. 2 d. 2 p. numatyti įgaliojimai | C21: -
A23: Tiekėjo patvirtinimai:
A24: 1. Šiuo pasiūlymu pažymime, kad sutinkame su visomi pirkimo sąlygomis, nustatytomis:
A25: 1.1. viešojo pirkimo dokumentuose
A26: 1.2. kituose pirkimo dokumentuose (jų paaiškinimuose, papildymuose).
A27: 2. Patvirtiname, kad informacija ir duomenys, pateikti pasiūlyme, yra teisingi ir apima viską, ko reikia tinkamam sutarties įvykdymui
A28: 3. Patvirtiname, kad jei pasiūlyme nenurodyti kolegialaus priežiūros/valdymo organų nariai, šie organai juridiniuose asmenyse nėra sudaryti (taikoma, kai pirkimo dokumentuose nustatyti pašalinimo pagrindai).
A29: 4. Pasiūlymas galioja iki termino, nustatyto pirkimo dokumentuose.
A35: 16. DALIS | B35: PRIEMONĖS ENDOSKOPŲ VALYMUI IR DEZINFEKCIJAI RANKINIU BŪDU
A37: Tiekėjo pasiūlymas:
A38: Nr. | B38: Pavadinimas | C38: Mato vienetas | D38: Kiekis | E38: Vieneto įkainis be PVM, Eur | F38: Suma be PVM, Eur | G38: Siūlomos prekės modelis, pavadinimas, gamintojas | H38: Tiekėjo siūlomi parametrai ir parametrą pagrindžiančio dokumento puslapis
A39: 16. | B39: Priemonės endoskopų valymui ir dezinfekcijai rankiniu būdu
A40: 16.1. | B40: Priemonė lanksčių endoskopų “Olympus”, “Pentax”, “Karl Storz” aukšto lygio dezinfekcijai | C40: kg | D40: 100 | E40: 13.3 | F40: =IF(ISBLANK(E40),"", PRODUCT(D40,E40)) -> 1330 | G40: Innosept POWDER 1,5kg., Prisman GmbH, Vokietija
A41: 16.1.1. | B41: Veiklioji medžiaga – perkarbonatas. | H41: Veiklioji medžiaga – perkarbonatas.
A42: 16.1.2. | B42: Naikina bakterijas (įskaitant TBC mikobakterijas), koncentracija - ≤1%, ekspozicija - ≤5 min. | H42: Naikina bakterijas (įskaitant TBC mikobakterijas), koncentracija - ≤1%, ekspozicija - ≤5 min.
A43: 16.1.3. | B43: Inaktyvuoja virusus (HBV, HIV, lipofilinius virusus), grybelius. | H43: Inaktyvuoja virusus (HBV, HIV, lipofilinius virusus), grybelius.
A44: 16.1.4. | B44: Naikina virusus, ekspozicija - ≤ 10 min. | H44: Naikina virusus, ekspozicija - ≤ 10 min.
A45: 16.1.5. | B45: Forma – milteliai/granulės. | H45: Forma – milteliai/granulės.
A46: 16.1.6. | B46: Pakuotė iki 6 kg, komplekte su dozavimo šaukšteliu | H46: Pakuotė 1,5kg, komplekte su dozavimo šaukšteliu. Psl.Nr. 56-66; 117-121
A47: 16.1.7. | B47: Pateikti priemonės aprašymą (katalogą) originalo kalba, priemonės naudojimo instrukciją (lietuvių k.), atitinkamai priemonės biocido autorizacijos liudijimą ir/ar atitikties medicinos prietaisų direktyvai 93/42 EEB deklaracijas (originalo k. ir vertimą į lietuvių k.), saugos duomenų lapus (lietuvių k.).
A48: 16.2. | B48: Valomasis koncentratas daugkartinio naudojimo medicininiams instrumentams (endoskopų “Olympus”, “Pentax”, “Karl Storz” valymui). | C48: L | D48: 400 | E48: 8 | F48: =IF(ISBLANK(E48),"", PRODUCT(D48,E48)) -> 3200 | G48: Instru Zym (2 ltr), Laboratorium Dr.Deppe, Vokietija
A49: 16.2.1. | B49: Medicinos instrumentų ikisterilizacinio plovimo priemonė (koncentratas) gamintojo komplektuojamas su aukšto lygio dezinfekcijos priemone enzimų pagrindu. | H49: Medicinos instrumentų ikisterilizacinio plovimo priemonė (koncentratas) gamintojo komplektuojamas su aukšto lygio dezinfekcijos priemone enzimų pagrindu.
A50: 16.2.2. | B50: Mažos koncentracijos nuo 0,5 iki 2,0% | H50: Mažos koncentracijos nuo 0,5 iki 2,0%
A51: 16.2.3. | B51: Ekspozicijos laikas (5–15 min.) | H51: Ekspozicijos laikas (5–15 min.)
A52: 16.2.4. | B52: Neputojanti | H52: Neputojanti
A53: 16.2.5. | B53: Suderinama su aukšto lygio dezinfektantu perkarbonato pagrindu | H53: Suderinama su aukšto lygio dezinfektantu perkarbonato pagrindu
A54: 16.2.6. | B54: Darbinio tirpalo pH neutralus | H54: Darbinio tirpalo pH neutralus
A55: 16.2.7. | B55: Pakuotė iki 2 litrų. | H55: Pakuotė 2 litrai. Psl.Nr. 24-27; 122-130
A56: 16.2.8. | B56: Pateikti priemonės aprašymą (katalogą) originalo kalba, priemonės naudojimo instrukciją (lietuvių k.), atitinkamai priemonės biocido autorizacijos liudijimą ir/ar atitikties medicinos prietaisų direktyvai 93/42 EEB deklaracijas (originalo k. ir vertimą į lietuvių k.), saugos duomenų lapus (lietuvių k.).
A57: 16.3. | B57: Testinės juostelės | C57: vnt. | D57: 400 | E57: 1 | F57: =IF(ISBLANK(E57),"", PRODUCT(D57,E57)) -> 400 | G57: Quantofix indikatorius, 1 vnt., Prisman GmbH, Vokietija
A58: 16.3.1. | B58: Skirtos aukšto lygio dezinfektanto tirpalo veiksmingumui nustatyti. | H58: Skirtos aukšto lygio dezinfektanto tirpalo veiksmingumui nustatyti.
A59: 16.3.2. | B59: Pakuotėje ne mažiau nei 50 vnt. | H59: Pakuotėje 50 vnt., Psl.Nr. 131
E60: Suma be PVM | F60: =IF((COUNT(D40:D59)<>COUNT(F40:F59)),"", SUM(F40:F59)) -> 4930 | G60: =IF((COUNT(D40:D59)<>COUNT(F40:F59)),"Neužpildytos visų objektų kainos", "") -> 
E61: PVM suma | F61: 310.5
E62: Suma su PVM | F62: =IF(ISBLANK(F61), "", SUM(F60:F61)) -> 5240.5 | G62: Dalies biudžetas su PVM: 9619,5 Eur
A68: 19. DALIS | B68: PRIEMONĖS MEDICINOS PRIETAISŲ PIRMINIAM VALYMUI IR DEZINFEKCIJAI
A70: Tiekėjo pasiūlymas:
A71: Nr. | B71: Pavadinimas | C71: Mato vienetas | D71: Kiekis | E71: Vieneto įkainis be PVM, Eur | F71: Suma be PVM, Eur | G71: Siūlomos prekės modelis, pavadinimas, gamintojas | H71: Tiekėjo siūlomi parametrai ir parametrą pagrindžiančio dokumento puslapis
A72: 19. | B72: Priemonės medicinos prietaisų pirminiam valymui ir dezinfekcijai
A73: 19.1. | B73: Priemonės medicinos prietaisų pirminiam valymui ir dezinfekcijai | C73: L | D73: 350 | E73: 7 | F73: =IF(ISBLANK(E73),"", PRODUCT(D73,E73)) -> 2450 | G73: Endo Star Neu (2 l), Laboratorium Dr.Deppe, Vokietija
A74: 19.1.1. | B74: Produktas skirtas lanksčių ir nelanksčių endoskopų, anesteziologinių priedų, kvėpavimo kaukių, chirurginių instrumentų ir t.t. pirminiam valymui bei dezinfekcijai. | H74: Produktas skirtas lanksčių ir nelanksčių endoskopų, anesteziologinių priedų, kvėpavimo kaukių, chirurginių instrumentų ir t.t. pirminiam valymui bei dezinfekcijai.
A75: 19.1.2. | B75: Veikliosios medžiagos: ketvirtiniai amonio junginiai, alkoholiai. | H75: Veikliosios medžiagos: ketvirtiniai amonio junginiai, alkoholiai.
A76: 19.1.3. | B76: Pasižyminti baktericidiniu, tuberkuliocidiniu, fungicidiniu, virucidiniu aktyvumu, veikia HBV, HCV, ŽIV, Adeno virusus per 15 min. | H76: Pasižyminti baktericidiniu, tuberkuliocidiniu, fungicidiniu, virucidiniu aktyvumu, veikia HBV, HCV, ŽIV, Adeno virusus per 15 min.
A77: 19.1.4. | B77: Koncentrato pH apie 9,9, 1% - 5% , darbinių tirpalų pH apie 8,8-9%. | H77: Koncentrato pH apie 9,9, 1% - 5% , darbinių tirpalų pH apie 8,8-9%.
A78: 19.1.5. | B78: Preparato sudėtyje nėra aldehidų, chloro, aktyvaus deguonies pagrindu veikiančių medžiagų. | H78: Preparato sudėtyje nėra aldehidų, chloro, aktyvaus deguonies pagrindu veikiančių medžiagų.
A79: 19.1.6. | B79: Preparatas vienu metu valo ir dezinfekuoja instrumentus, turi antikorozinių savybių. | H79: Preparatas vienu metu valo ir dezinfekuoja instrumentus, turi antikorozinių savybių.
A80: 19.1.7. | B80: Nereikalingas aktyvatorius. | H80: Nereikalingas aktyvatorius.
A81: 19.1.8. | B81: Tinka naudojimui ultragarsinėse vonelėse. | H81: Tinka naudojimui ultragarsinėse vonelėse.
A82: 19.1.9. | B82: Pageidautina pakuotė: nuo 1 iki 2 l ir 5 l. | H82: Pakuotės: 2 l ir 5 l.
A83: 19.1.10. | B83: Medicinos prietaisas, ženklintas CE (pagal medicinos prietaisų direktyvą). | H83: Medicinos prietaisas, ženklintas CE (pagal medicinos prietaisų direktyvą).
A84: 19.1.11. | B84: Pateikti lipnias laminuotas etiketes darbinio tirpalo ženklinimui. | H84: Pateiksime lipnias laminuotas etiketes darbinio tirpalo ženklinimui.
A85: 19.1.12. | B85: Pateikti priemones dozavimui (dozavimo pompas ar kt.) palengvinančias darbinio tirpalo gaminimą. | H85: Pateiksime priemones dozavimui (dozavimo pompas ar kt.) palengvinančias darbinio tirpalo gaminimą. Psl.Nr. 24-27; 132-142
A86: 19.1.13. | B86: Pateikti priemonės aprašymą (katalogą) originalo kalba, priemonės naudojimo instrukciją (lietuvių k.), atitinkamai priemonės biocido autorizacijos liudijimą ir/ar atitikties medicinos prietaisų direktyvai 93/42 EEB deklaracijas (originalo k. ir vertimą į lietuvių k.), saugos duomenų lapus (lietuvių k.).
E87: Suma be PVM | F87: =IF((COUNT(D73:D86)<>COUNT(F73:F86)),"", SUM(F73:F86)) -> 2450 | G87: =IF((COUNT(D73:D86)<>COUNT(F73:F86)),"Neužpildytos visų objektų kainos", "") -> 
E88: PVM suma | F88: 122.5
E89: Suma su PVM | F89: =IF(ISBLANK(F88), "", SUM(F87:F88)) -> 2572.5 | G89: Dalies biudžetas su PVM: 3599,75 Eur
A95: 22. DALIS | B95: CHEMINIAI STERILIZACIJOS PROCESO INDIKATORIAI
A97: Tiekėjo pasiūlymas:
A98: Nr. | B98: Pavadinimas | C98: Mato vienetas | D98: Kiekis | E98: Vieneto įkainis be PVM, Eur | F98: Suma be PVM, Eur | G98: Siūlomos prekės modelis, pavadinimas, gamintojas | H98: Tiekėjo siūlomi parametrai ir parametrą pagrindžiančio dokumento puslapis
A99: 22. | B99: Cheminiai sterilizacijos proceso indikatoriai
A100: 22.1. | B100: Išorinis indikatorius dokumentacijai (garais) | C100: vnt. | D100: 603000 | E100: 0.008 | F100: =IF(ISBLANK(E100),"", PRODUCT(D100,E100)) -> 4824 | G100: Doku-L-Label ECO chem.indikat. (750vnt), Gke- GmbH, Vokietija
A101: 22.1.1. | B101: Lipni dviguba etiketė - cheminis išorinis indikatorius klijuojamas ant sterilizuojamų paketų paviršių; | H101: Lipni dviguba etiketė - cheminis išorinis indikatorius klijuojamas ant sterilizuojamų paketų paviršių;
A102: 22.1.2. | B102: Skirtas visų tipų sterilizuotoms pakuotėms atpažinti, privalomai informacijai, įklijuoti į dokumentus. | H102: Skirtas visų tipų sterilizuotoms pakuotėms atpažinti, privalomai informacijai, įklijuoti į dokumentus.
A103: 22.1.3. | B103: Turi tvirtai prilipti prie paketo, neatsiklijuoti nuo paketo sterilizacijos metu ir po jo. | H103: Tvirtai prilimpa prie paketo, neatsiklijuoja nuo paketo sterilizacijos metu ir po jo.
A104: 22.1.4. | B104: Ant cheminio indikatoriaus turi būti pakankamai vietos reikiamai informacijai užrašyti (ne mažiau 3 eilučių, 36 simbolių). | H104: Ant cheminio indikatoriaus yra pakankamai vietos reikiamai informacijai užrašyti (3 eilučių, 36 simbolių).
A105: 22.1.5. | B105: Sterilizacijos būdas – vandens garais. | H105: Sterilizacijos būdas – vandens garais.
A106: 22.1.6. | B106: Turi atitikti LST EN ISO 11140-1 1 tipo reikalavimus (pateikti patvirtinančius dokumentus). | H106: Atitinka LST EN ISO 11140-1 1 tipo reikalavimus.
A107: 22.1.7. | B107: Indikatorius turi būti pritaikytas įklijuoti į įstaigoje naudojamus dokumentus. | H107: Indikatorius turi būti pritaikytas įklijuoti į įstaigoje naudojamus dokumentus. Psl.Nr. 143-146; 147-148
A108: 22.2. | B108: Rašalo kasetė rankiniam spausdintuvui | C108: vnt. | D108: 30 | E108: 5 | F108: =IF(ISBLANK(E108),"", PRODUCT(D108,E108)) -> 150 | G108: Rašalo kasetės pakeitimui, Gke- GmbH, Vokietija
A109: 22.2.1. | B109: Tinkanti įstaigos turimiems rankiniams spausdintuvams (arba spausdintuvus pateikti panaudai) | H109: Tinkanti įstaigos turimiems rankiniams spausdintuvams.
A110: 22.2.2. | B110: Pramoninės gamybos. | H110: Pramoninės gamybos.
A111: 22.2.3. | B111: Rašalas skirtas sterilizacijai vandens garais ir FO. | H111: Rašalas skirtas sterilizacijai vandens garais ir FO.
A112: 22.2.4. | B112: Spalva – juoda, po sterilizacijos neišblunka, išlieka stabili. | H112: Spalva – juoda, po sterilizacijos neišblunka, išlieka stabili.
A113: 22.2.5. | B113: Rašalas supakuotas į sandarią pakuotę, apsaugančią nuo išorės veiksnių poveikio | H113: Rašalas supakuotas į sandarią pakuotę, apsaugančią nuo išorės veiksnių poveikio
A114: 22.2.6. | B114: Galiojimo terminas – ne mažiau 24 mėn. | H114: Galiojimo terminas – 24 mėn.
A115: 22.2.7. | B115: Pakuotėje – 1 vnt. | H115: Pakuotėje – 1 vnt., Psl.Nr. 147-148
A116: 22.3. | B116: Antros klasės cheminis indikatorius skirtas naudoti su specialiam kroviniui patvirtintu proceso išbandymo prietaisu (vandens garams) | C116: vnt. | D116: 16000 | E116: 0.7 | F116: =IF(ISBLANK(E116),"", PRODUCT(D116,E116)) -> 11200 | G116: BMS indikat. (garais, C-S-PM-SV1) 211-255, Gke- GmbH, Vokietija
A117: 22.3.1. | B117: Pritaikytas specifinių įstaigos mišrių krovinių (kompleksinių, mikroinvazinių, ypač sudėtingų tuščiavidurių, ilgesnių kaip 8 m ilgio medicinos prietaisų) sterilizacijos kontrolei. | H117: Pritaikytas specifinių įstaigos mišrių krovinių (kompleksinių, mikroinvazinių, ypač sudėtingų tuščiavidurių, ilgesnių kaip 8 m ilgio medicinos prietaisų) sterilizacijos kontrolei.
A118: 22.3.2. | B118: Pateikti panaudai 10 vnt. krovinio išbandymo prietaisus, kurie turi būti aiškiai identifikuojami - ant įtaiso arba ant įtaiso pakuotės turi būti įskaitomas gamintojo atliktas ženklinimas: pavadinimas, artikelio Nr., nuoroda į sterilizacijos būdą, gamintojo pavadinimas. | H118: Pateiksime panaudai 10 vnt. krovinio išbandymo prietaisus, kurie yra aiškiai identifikuojami - ant įtaiso yra įskaitomas gamintojo atliktas ženklinimas: pavadinimas, artikelio Nr., nuoroda į sterilizacijos būdą, gamintojo pavadinimas.
A119: 22.3.3. | B119: Prietaisas turi būti atsparus sterilizacijai garais, atlaikyti ne mažiau kaip 250 sterilizacijos sočiaisiais garais ciklų. | H119: Prietaisas atsparus sterilizacijai garais, atlaiko 10 000 sterilizacijos sočiaisiais garais ciklų.
A120: 22.3.4. | B120: Tas pats indikatorius turi būti skirtas sterilizacijos procesams 134°C- 3,5 min. ir 121° C - 15 min. | H120: Tas pats indikatorius skirtas sterilizacijos procesams 134°C- 3,5 min. ir 121° C - 15 min.
A121: 22.3.5. | B121: Indikatorinė juostelė turi būti aiškiai identifikuojama - turi būti įskaitomas gamintojo ženklinimas (pavadinimas, artikelio Nr., nuoroda į sterilizacijos būdą, atitiktis EN ISO 11140-1 2 tipas, spalvos pasikeitimas, gamybinės partijos numeris). | H121: Indikatorinė juostelė aiškiai identifikuojama – yra įskaitomas gamintojo ženklinimas (pavadinimas, artikelio Nr., nuoroda į sterilizacijos būdą, atitiktis EN ISO 11140-1 2 tipas, spalvos pasikeitimas, gamybinės partijos numeris).
A122: 22.3.6. | B122: Indikatorinė juostelė turi būti padengta apsauginiu sluoksniu, po sterilizacijos pasikeitusi indikatorinė spalva turi išlikti stabili ne trumpiau kaip 3 metus. | H122: Indikatorinė juostelė turi būti padengta apsauginiu sluoksniu, po sterilizacijos pasikeitusi indikatorinė spalva išlieka stabili ne trumpiau kaip 3 metus.
A123: 22.3.7. | B123: Indikatorinės juostelės forma - lipni etiketė, pritaikyta klijuoti į įstaigoje naudojamus ir patvirtintus krovinio registracijos kortelių žurnalus nenaudojant klijų. | H123: Indikatorinės juostelės forma - lipni etiketė, pritaikyta klijuoti į įstaigoje naudojamus ir patvirtintus krovinio registracijos kortelių žurnalus nenaudojant klijų.
A124: 22.3.8. | B124: Pateikti atitikties dokumentus EN ISO 11140-1 2 tipas. | H124: Pateikti atitikties dokumentus EN ISO 11140-1 2 tipas. Psl.Nr. 149-157
E125: Suma be PVM | F125: =IF((COUNT(D100:D124)<>COUNT(F100:F124)),"", SUM(F100:F124)) -> 16174 | G125: =IF((COUNT(D100:D124)<>COUNT(F100:F124)),"Neužpildytos visų objektų kainos", "") -> 
E126: PVM suma | F126: 3396.54
E127: Suma su PVM | F127: =IF(ISBLANK(F126), "", SUM(F125:F126)) -> 19570.54 | G127: Dalies biudžetas su PVM: 41248,9 Eur
A131: 23. DALIS | B131: CHEMINIAI STERILIZACIJOS PROCESO INDIKATORIAI (STERILIZACIJAI FORMALDEHIDO GARAI)
A133: Tiekėjo pasiūlymas:
A134: Nr. | B134: Pavadinimas | C134: Mato vienetas | D134: Kiekis | E134: Vieneto įkainis be PVM, Eur | F134: Suma be PVM, Eur | G134: Siūlomos prekės modelis, pavadinimas, gamintojas | H134: Tiekėjo siūlomi parametrai ir parametrą pagrindžiančio dokumento puslapis
A135: 23. | B135: Cheminiai sterilizacijos proceso indikatoriai (sterilizacijai formaldehido garai)
A136: 23.1. | B136: Cheminiai sterilizacijos proceso indikatoriai sterilizacijai formaldehido garais | C136: vnt. | D136: 3750 | E136: 0.02 | F136: =IF(ISBLANK(E136),"", PRODUCT(D136,E136)) -> 75 | G136: C-F-L-1-DA-Y indikatorius (Doku-F-Label) chem.indik. (750vnt) Gke- GmbH, Vokietija
A137: 23.1.1. | B137: Išorinis indikatorius dokumentacijai (FO). | H137: Išorinis indikatorius dokumentacijai (FO).
A138: 23.1.2. | B138: Cheminis išorinis indikatorius klijuojamas ant sterilizuojamų paketų paviršių. | H138: Cheminis išorinis indikatorius klijuojamas ant sterilizuojamų paketų paviršių.
A139: 23.1.3. | B139: Skirtas visų tipų sterilizuotoms pakuotėms atpažinti, užrašyti privalomai informacijai bei įklijuoti į dokumentus. | H139: Skirtas visų tipų sterilizuotoms pakuotėms atpažinti, užrašyti privalomai informacijai bei įklijuoti į dokumentus.
A140: 23.1.4. | B140: Turi tvirtai prilipti prie paketo, neatsiklijuoti nuo paketo prieš ir po sterilizacijos. | H140: Tvirtai prilipo prie paketo, neatsiklijuoja nuo paketo prieš ir po sterilizacijos.
A141: 23.1.5. | B141: Ant cheminio indikatoriaus turi būti pakankamai vietos reikiamai informacijai užrašyti (ne mažiau 3 eilučių, 36 simbolių). | H141: Ant cheminio indikatoriaus yra pakankamai vietos reikiamai informacijai užrašyti (3 eilučių, 36 simbolių).
A142: 23.1.6. | B142: Turi atitikti LST EN ISO 11140-1 1 tipo reikalavimus (pateikti patvirtinančius dokumentus). | H142: Atitinka LST EN ISO 11140-1 1 tipo reikalavimus. Psl. Nr. 143-146; 147-148
A143: 23.2. | B143: Antros klasės cheminis indikatorius skirtas naudoti su specialiam kroviniui patvirtintu proceso išbandymo prietaisu (FO) | C143: vnt. | D143: 260 | E143: 0.8 | F143: =IF(ISBLANK(E143),"", PRODUCT(D143,E143)) -> 208 | G143: BMS indikat.(FO, C-F-PM) art.no. 213-203, 213-202, Gke- GmbH, Vokietija
A144: 23.2.1. | B144: Pritaikytas specifiniams įstaigos mišriems kroviniams (kompleksinių, mikroinvazinių, ypač sudėtingų tuščiavidurių (ilgesnių kaip 8 m ilgio) medicinos prietaisų) kontroliuoti arba pateikti 5 lygiaverčius prietaisus; | H144: Pritaikytas specifiniams įstaigos mišriems kroviniams (kompleksinių, mikroinvazinių, ypač sudėtingų tuščiavidurių (ilgesnių kaip 8 m ilgio) medicinos prietaisų) kontroliuoti;
A145: 23.2.2. | B145: Krovinio išbandymo įtaisas turi būti aiškiai identifikuojamas - ant įtaiso turi būti įskaitomas gamintojo atliktas ženklinimas: pavadinimas, artikelio Nr., nuoroda į sterilizacijos būdą, gamintojo pavadinimas; | H145: Krovinio išbandymo įtaisas aiškiai identifikuojamas - ant įtaiso yra įskaitomas gamintojo atliktas ženklinimas: pavadinimas, artikelio Nr., nuoroda į sterilizacijos būdą, gamintojo pavadinimas;
A146: 23.2.3. | B146: Prietaisas turi būti atsparus sterilizacijai garais, atlaikyti ne mažiau kaip 6000 sterilizacijos sočiaisiais garais ciklų). | H146: Prietaisas atsparus sterilizacijai garais, atlaiko 10000 sterilizacijos sočiaisiais garais ciklų.
A147: 23.2.4. | B147: Indikatorinė juostelė turi būti skirta sterilizacijai FO, aiškiai identifikuojama - turi būti įskaitomas gamintojo ženklinimas (pavadinimas, artikelio Nr., nuoroda į sterilizacijos būdą (FO), gamintojo pavadinimas, atitiktis EN ISO 11140-1 2 klasė, spalvos pasikeitimas, gamybinės partijos numeris); | H147: Indikatorinė juostelė skirta sterilizacijai FO, aiškiai identifikuojama - įskaitomas gamintojo ženklinimas (pavadinimas, artikelio Nr., nuoroda į sterilizacijos būdą (FO), gamintojo pavadinimas, atitiktis EN ISO 11140-1 2 klasė, spalvos pasikeitimas, gamybinės partijos numeris);
A148: 23.2.5. | B148: Indikatorinė juostelė turi būti padengta apsauginiu sluoksniu, po sterilizacijos pasikeitusi indikatorinė spalva turi išlikti stabili ne trumpiau kaip 5 metus; | H148: Indikatorinė juostelė padengta apsauginiu sluoksniu, po sterilizacijos pasikeitusi indikatorinė spalva išlieka stabili ne trumpiau kaip 5 metus;
A149: 23.2.6. | B149: Indikatorinės juostelės forma - lipni etiketė, pritaikytas klijuoti į įstaigoje naudojamus ir patvirtintus krovinio registracijos kortelių žurnalus nenaudojant klijų; | H149: Indikatorinės juostelės forma - lipni etiketė, pritaikytas klijuoti į įstaigoje naudojamus ir patvirtintus krovinio registracijos kortelių žurnalus nenaudojant klijų;
A150: 23.2.7. | B150: Pateikti atitikties dokumentus EN ISO 11140-1 2 klasė, EN 867-5; | H150: Pateikti atitikties dokumentai EN ISO 11140-1 2 klasė, EN 867-5;
A151: 23.2.8. | B151: Pateikti aiškų, įskaitomą A4 formato, laminuotą spalvos pasikeitimo etaloną su reikšmių paaiškinimais lietuvių kalba. | H151: Pateiksime aiškų, įskaitomą A4 formato, laminuotą spalvos pasikeitimo etaloną su reikšmių paaiškinimais lietuvių kalba. Psl.Nr. 149-155; 158
E152: Suma be PVM | F152: =IF((COUNT(D136:D151)<>COUNT(F136:F151)),"", SUM(F136:F151)) -> 283 | G152: =IF((COUNT(D136:D151)<>COUNT(F136:F151)),"Neužpildytos visų objektų kainos", "") -> 
E153: PVM suma | F153: 59.43
E154: Suma su PVM | F154: =IF(ISBLANK(F153), "", SUM(F152:F153)) -> 342.43 | G154: Dalies biudžetas su PVM: 572,94 Eur
A158: 24. DALIS | B158: CHEMINIAI INDIKATORIAI SKIRTI ORO PAŠALINIMO IŠ STERILIZATORIAUS DARBO KAMEROS IR GARŲ PRASISKVERBIMO KONTROLEI
A160: Tiekėjo pasiūlymas:
A161: Nr. | B161: Pavadinimas | C161: Mato vienetas | D161: Kiekis | E161: Vieneto įkainis be PVM, Eur | F161: Suma be PVM, Eur | G161: Siūlomos prekės modelis, pavadinimas, gamintojas | H161: Tiekėjo siūlomi parametrai ir parametrą pagrindžiančio dokumento puslapis
A162: 24. | B162: Cheminiai indikatoriai skirti oro pašalinimo iš sterilizatoriaus darbo kameros ir garų prasiskverbimo kontrolei
A163: 24.1. | B163: Cheminiai indikatoriai skirti oro pašalinimo iš sterilizatoriaus darbo kameros ir garų prasiskverbimo kontrolei | C163: vnt. | D163: 2500 | E163: 1.1 | F163: =IF(ISBLANK(E163),"", PRODUCT(D163,E163)) -> 2750 | G163: C-S-BDS-SV1 chem. indikatorius 211-115, Gke- GmbH, Vokietija
A164: 24.1.1. | B164: Cheminiai indikatoriai skirti oro pašalinimo iš sterilizatoriaus darbo kameros ir garų prasiskverbimo kontrolei. | H164: Cheminiai indikatoriai skirti oro pašalinimo iš sterilizatoriaus darbo kameros ir garų prasiskverbimo kontrolei.
A165: 24.1.2. | B165: Pateikti 10 vnt. lygiaverčius Bowie&Dick imitacinius prietaisus panaudai. | H165: Pateiksime 10 vnt. Bowie&Dick imitacinius prietaisus panaudai.
A166: 24.1.3. | B166: Prietaisas turi būti aiškiai identifikuojamas - ant įtaiso arba ant įtaiso pakuotės turi būti įskaitomas gamintojo atliktas ženklinimas: pavadinimas, artikelio Nr., gamintojo pavadinimas; prietaisas turi būti atsparus sterilizacijai garais, atlaikyti ne mažiau kaip 250 ciklų. | H166: Prietaisas aiškiai identifikuojamas - ant įtaiso yra įskaitomas gamintojo atliktas ženklinimas: pavadinimas, artikelio Nr., gamintojo pavadinimas; prietaisas atsparus sterilizacijai garais, atlaiko 10000 ciklų.
A167: 24.1.4. | B167: Indikatorius turi būti 2 tipo, juostelė turi būti ne mažiau 6 segmentų. | H167: Indikatorius turi būti 2 tipo, juostelė turi būti ne mažiau 6 segmentų.
A168: 24.1.5. | B168: Turi atitikti LST EN 285, LST EN ISO 11140-1, LST EN ISO 11140-3 arba LST EN ISO 11140-4 ir LST EN 867-5 reikalavimus (pateikti tai patvirtinančius dokumentus). | H168: Atitinka LST EN 285, LST EN ISO 11140-1, LST EN ISO 11140-3 arba LST EN ISO 11140-4 ir LST EN 867-5 reikalavimus.
A169: 24.1.6. | B169: Indikatorius ir prietaisas turi sudaryti vieningą sistemą pagal EN ISO 11140-4 (pateikti tai patvirtinančius dokumentus); | H169: Indikatorius ir prietaisas sudaro vieningą sistemą pagal EN ISO 11140-4;
A170: 24.1.7. | B170: Turi būti pateiktas indikatoriaus spalvos pasikeitimo etalonas su teigiamų ir neigiamų rezultatų paaiškinimais lietuvių kalba. | H170: Pateiktas indikatoriaus spalvos pasikeitimo etalonas su teigiamų ir neigiamų rezultatų paaiškinimais lietuvių kalba.
A171: 24.1.8. | B171: Indikatorinė juostelė turi būti aiškiai identifikuojama - turi būti įskaitomas gamintojo ženklinimas (pavadinimas, artikelio Nr., nuoroda į sterilizacijos būdą, atitiktis EN ISO 11140-1 2 tipas, spalvos pasikeitimas, gamybinės partijos numeris). | H171: Indikatorinė juostelė aiškiai identifikuojama - įskaitomas gamintojo ženklinimas (pavadinimas, artikelio Nr., nuoroda į sterilizacijos būdą, atitiktis EN ISO 11140-1 2 tipas, spalvos pasikeitimas, gamybinės partijos numeris).
A172: 24.1.9. | B172: Indikatorius turi būti apsaugotas nuo išblukimo, po sterilizacijos turi išlaikyti spalvą ne trumpiau kaip 3 metus, sterilizacinės registrus saugant įprastinėse sąlygose (pateikti tai įrodančius dokumentus-naudojimo instrukcijas ar pan.). | H172: Indikatorius apsaugotas nuo išblukimo, po sterilizacijos išlaiko ne trumpiau kaip 3 metus, sterilizacinės registrus saugant įprastinėse sąlygose.
A173: 24.1.10. | B173: Pateikti aiškų, įskaitomą A4 formato, laminuotą spalvos pasikeitimo etaloną su reikšmių paaiškinimais lietuvių kalba. | H173: Pateiktas aiškus, įskaitomas A4 formato, laminuotas spalvos pasikeitimo etalonas su reikšmių paaiškinimais lietuvių kalba.
A174: 24.1.11. | B174: Minimalios pakuotės iki 50 vnt., ant minimalios pakuotės turi būti nurodyta indikatorių paskirtis, pavadinimas, identifikacinis kodas, partijos Nr., klasė ir atitikimas EN ISO 11140-1, EN ISO 11140-4 standartui. | H174: Minimalios pakuotės 10 vnt., ant minimalios pakuotės nurodyta indikatorių paskirtis, pavadinimas, identifikacinis kodas, partijos Nr., klasė ir atitikimas EN ISO 11140-1, EN ISO 11140-4 standartui. Psl.Nr. 159-167
E175: Suma be PVM | F175: =IF((COUNT(D163:D174)<>COUNT(F163:F174)),"", SUM(F163:F174)) -> 2750 | G175: =IF((COUNT(D163:D174)<>COUNT(F163:F174)),"Neužpildytos visų objektų kainos", "") -> 
E176: PVM suma | F176: 577.5
E177: Suma su PVM | F177: =IF(ISBLANK(F176), "", SUM(F175:F176)) -> 3327.5 | G177: Dalies biudžetas su PVM: 4235 Eur
A184: 30. DALIS | B184: PRIEMONĖS SKIRTOS MEDICINOS PRIETAISŲ VALYMO IR DEZINFEKCIJOS PROCESO KONTROLEI AUOTOMATINIUOSE PLAUTUVUOSE
A186: Tiekėjo pasiūlymas:
A187: Nr. | B187: Pavadinimas | C187: Mato vienetas | D187: Kiekis | E187: Vieneto įkainis be PVM, Eur | F187: Suma be PVM, Eur | G187: Siūlomos prekės modelis, pavadinimas, gamintojas | H187: Tiekėjo siūlomi parametrai ir parametrą pagrindžiančio dokumento puslapis
A188: 30. | B188: Priemonės skirtos medicinos prietaisų valymo ir dezinfekcijos proceso kontrolei auotomatiniuose plautuvuose
A189: 30.1. | B189: Krovinio išbandymo įtaisas vienalyčių ir tuščiavidurių instrumentų įkrovoms (pateikiamas nemokamai panaudai) | C189: vnt. | D189: 70 | E189: 0 | F189: =IF(ISBLANK(E189),"", PRODUCT(D189,E189)) -> 0 | G189: Valymo indikatoriaus laikiklis, Gke-GmbH Vokietija
A190: 30.1.1. | B190: Vienalytėms įkrovoms įtaisas segamas/tvirtinimas prie sietelio. | H190: Vienalytėms įkrovoms įtaisas segamas/tvirtinimas prie sietelio.
A191: 30.1.2. | B191: Forma – rėmeliai atviri iš viršaus ir apačios. | H191: Forma – rėmeliai atviri iš viršaus ir apačios.
A192: 30.1.3. | B192: Turi būti naudojamas kartu su medicinos prietaisų valymo kokybės indikatoriais. | H192: Naudojamas kartu su medicinos prietaisų valymo kokybės indikatoriais.
A193: 30.1.4. | B193: Atsparus aukštai temperatūrai ir garams. | H193: Atsparus aukštai temperatūrai ir garams.
A194: 30.1.5. | B194: Tinkamas naudoti ne mažiau kaip 5000 ciklų. | H194: Tinkamas naudoti ne mažiau kaip 5000 ciklų.
A195: 30.1.6. | B195: Tuščiavidurių instrumentų įkrovoms įtaisas turi būti pagamintas iš saugios, atsparios aukštai temperatūrai ir garams medžiagos, daugkartinio naudojimo, tinkamas naudoti ne mažiau, kaip 1000 ciklų. | H195: Tuščiavidurių instrumentų įkrovoms įtaisas pagamintas iš saugios, atsparios aukštai temperatūrai ir garams medžiagos, daugkartinio naudojimo, tinkamas naudoti ne mažiau, kaip 1000 ciklų.
A196: 30.1.7. | B196: Komplekte su Luer-Lock jungtimis. | H196: Komplekte su Luer-Lock jungtimis.
A197: 30.1.8. | B197: Forma – indikatoriaus laikymo kapsulė su vamzdeliu, pajungiamu prie jungties. | H197: Forma – indikatoriaus laikymo kapsulė su vamzdeliu, pajungiamu prie jungties.
A198: 30.1.9. | B198: Įtaisai duodami panaudai kartu su indikatoriais. | H198: Įtaisai duodami panaudai kartu su indikatoriais. Psl. Nr. 197-202
A199: 30.2. | B199: Indikatoriai medicinos prietaisų valymo kokybei nustatyti | C199: vnt. | D199: 350 | E199: 0.8 | F199: =IF(ISBLANK(E199),"", PRODUCT(D199,E199)) -> 280 | G199: Valymo indikatorius Chemo L2C, Gke-GmbH, Vokietija
A200: 30.2.1. | B200: Turi būti skirti vienalyčių ir tuščiavidurių medicinos prietaisų plovimo kokybei nustatyti automatiniuose plautuvuose, naudojami kartu su krovinio išbandymo įtaisais. | H200: Skirti vienalyčių ir tuščiavidurių medicinos prietaisų plovimo kokybei nustatyti automatiniuose plautuvuose, naudojami kartu su krovinio išbandymo įtaisais.
A201: 30.2.2. | B201: Testai turi tikti aukščiau nurodytiems krovinio išbandymo įtaisams. | H201: Testai tinka aukščiau nurodytiems krovinio išbandymo įtaisams.
A202: 30.2.3. | B202: Viena testo pusė – lipni. | H202: Viena testo pusė – lipni. Psl. Nr. 197-202
E203: Suma be PVM | F203: =IF((COUNT(D189:D202)<>COUNT(F189:F202)),"", SUM(F189:F202)) -> 280 | G203: =IF((COUNT(D189:D202)<>COUNT(F189:F202)),"Neužpildytos visų objektų kainos", "") -> 
E204: PVM suma | F204: 58.8
E205: Suma su PVM | F205: =IF(ISBLANK(F204), "", SUM(F203:F204)) -> 338.8 | G205: Dalies biudžetas su PVM: 338,8 Eur
A210: 33. DALIS | B210: DAUGKARTINIO NAUDOJIMO APSAUGOS AŠTRIEMS INSTRUMENTAMS
A212: Tiekėjo pasiūlymas:
A213: Nr. | B213: Pavadinimas | C213: Mato vienetas | D213: Kiekis | E213: Vieneto įkainis be PVM, Eur | F213: Suma be PVM, Eur | G213: Siūlomos prekės modelis, pavadinimas, gamintojas | H213: Tiekėjo siūlomi parametrai ir parametrą pagrindžiančio dokumento puslapis
A214: 33. | B214: Daugkartinio naudojimo apsaugos aštriems instrumentams
A215: 33.1. | B215: Daugkartinio naudojimo apsaugos aštriems instrumentams 2 x 9 x 25 mm | C215: vnt. | D215: 200 | E215: 0.25 | F215: =IF(ISBLANK(E215),"", PRODUCT(D215,E215)) -> 50 | G215: Apsaugos (1 vnt.) Kodas – 30000, Key Surgical GmbH, Vokietija
A216: 33.1.1. | B216: Skirtos pakuotei apsaugoti nuo pažeidimų. | H216: Skirtos pakuotei apsaugoti nuo pažeidimų.
A217: 33.1.2. | B217: Pagamintos iš skaidraus silikono ar lygiavertės medžiagos, atsparaus dezinfekcinėms medžiagoms ir plovikliams, skirtos sterilizacijai sočiaisiais vandens bei formaldehido garais. | H217: Pagamintos iš skaidraus silikono, atsparaus dezinfekcinėms medžiagoms ir plovikliams, skirtos sterilizacijai sočiaisiais vandens bei formaldehido garais.
A218: 33.1.3. | B218: Netrukdo sterilizacijos agentui prasiskverbti prie instrumentų dengiamų dalių. | H218: Netrukdo sterilizacijos agentui prasiskverbti prie instrumentų dengiamų dalių.
A219: 33.1.4. | B219: Ženklintos CE (pagal MDD 93/42 EEB). | H219: Ženklintos CE (pagal MDD 93/42 EEB).
A220: 33.1.5. | B220: Apsaugos dedamos ant instrumentų, jų rinkinių. | H220: Apsaugos dedamos ant instrumentų, jų rinkinių. Psl. Nr. 203-208; 211
A221: 33.2. | B221: Daugkartinio naudojimo apsaugos aštriems instrumentams 1,6 x 19 mm | C221: vnt. | D221: 100 | E221: 0.59 | F221: =IF(ISBLANK(E221),"", PRODUCT(D221,E221)) -> 59 | G221: Apsaugos (1 vnt.) Kodas – 01800, Key Surgical GmbH, Vokietija
A222: 33.2.1. | B222: Skirtos pakuotei apsaugoti nuo pažeidimų. | H222: Skirtos pakuotei apsaugoti nuo pažeidimų.
A223: 33.2.2. | B223: Pagamintos iš skaidraus silikono, ar lygiavertės medžiagos atsparaus dezinfekcinėms medžiagoms ir plovikliams, skirtos sterilizacijai sočiaisiais vandens bei formaldehido garais. | H223: Pagamintos iš skaidraus silikono, atsparaus dezinfekcinėms medžiagoms ir plovikliams, skirtos sterilizacijai sočiaisiais vandens bei formaldehido garais.
A224: 33.2.3. | B224: Netrukdo sterilizacijos agentui prasiskverbti prie instrumentų dengiamų dalių. | H224: Netrukdo sterilizacijos agentui prasiskverbti prie instrumentų dengiamų dalių.
A225: 33.2.4. | B225: Ženklintos CE (pagal MDD 93/42 EEB). | H225: Ženklintos CE (pagal MDD 93/42 EEB).
A226: 33.2.5. | B226: Apsaugos dedamos ant instrumentų, jų rinkinių. | H226: Apsaugos dedamos ant instrumentų, jų rinkinių. Psl. Nr. 203-208; 212
A227: 33.3. | B227: Daugkartinio naudojimo apsaugos aštriems instrumentams 2 x 19 mm | C227: vnt. | D227: 200 | E227: 0.59 | F227: =IF(ISBLANK(E227),"", PRODUCT(D227,E227)) -> 118 | G227: Apsaugos (1 vnt.) Kodas – 01801, Key Surgical GmbH, Vokietija
A228: 33.3.1. | B228: Skirtos pakuotei apsaugoti nuo pažeidimų. | H228: Skirtos pakuotei apsaugoti nuo pažeidimų.
A229: 33.3.2. | B229: Pagamintos iš skaidraus silikono, ar lygiavertės medžiagos atsparaus dezinfekcinėms medžiagoms ir plovikliams, skirtos sterilizacijai sočiaisiais vandens bei formaldehido garais. | H229: Pagamintos iš skaidraus silikono, atsparaus dezinfekcinėms medžiagoms ir plovikliams, skirtos sterilizacijai sočiaisiais vandens bei formaldehido garais.
A230: 33.3.3. | B230: Netrukdo sterilizacijos agentui prasiskverbti prie instrumentų dengiamų dalių. | H230: Netrukdo sterilizacijos agentui prasiskverbti prie instrumentų dengiamų dalių.
A231: 33.3.4. | B231: Ženklintos CE (pagal MDD 93/42 EEB). | H231: Ženklintos CE (pagal MDD 93/42 EEB).
A232: 33.3.5. | B232: Apsaugos dedamos ant instrumentų, jų rinkinių. | H232: Apsaugos dedamos ant instrumentų, jų rinkinių. Psl. Nr. 203-208; 212
A233: 33.4. | B233: Daugkartinio naudojimo apsaugos aštriems instrumentams 2,8 x 19 mm | C233: vnt. | D233: 200 | E233: 0.59 | F233: =IF(ISBLANK(E233),"", PRODUCT(D233,E233)) -> 118 | G233: Apsaugos (1 vnt.) Kodas – 01802, Key Surgical GmbH, Vokietija
A234: 33.4.1. | B234: Skirtos pakuotei apsaugoti nuo pažeidimų. | H234: Skirtos pakuotei apsaugoti nuo pažeidimų.
A235: 33.4.2. | B235: Pagamintos iš skaidraus silikono,ar lygiavertės medžiagos atsparaus dezinfekcinėms medžiagoms ir plovikliams, skirtos sterilizacijai sočiaisiais vandens bei formaldehido garais. | H235: Pagamintos iš skaidraus silikono, atsparaus dezinfekcinėms medžiagoms ir plovikliams, skirtos sterilizacijai sočiaisiais vandens bei formaldehido garais.
A236: 33.4.3. | B236: Netrukdo sterilizacijos agentui prasiskverbti prie instrumentų dengiamų dalių. | H236: Netrukdo sterilizacijos agentui prasiskverbti prie instrumentų dengiamų dalių.
A237: 33.4.4. | B237: Ženklintos CE (pagal MDD 93/42 EEB). | H237: Ženklintos CE (pagal MDD 93/42 EEB).
A238: 33.4.5. | B238: Apsaugos dedamos ant instrumentų, jų rinkinių. | H238: Apsaugos dedamos ant instrumentų, jų rinkinių. Psl. Nr. 203-208; 212
A239: 33.5. | B239: Daugkartinio naudojimo apsaugos aštriems instrumentams 2 x 16 x 25 mm | C239: vnt. | D239: 200 | E239: 0.245 | F239: =IF(ISBLANK(E239),"", PRODUCT(D239,E239)) -> 49 | G239: Apsaugos (1 vnt.) Kodas – 30016, Key Surgical GmbH, Vokietija
A240: 33.5.1. | B240: Skirtos pakuotei apsaugoti nuo pažeidimų. | H240: Skirtos pakuotei apsaugoti nuo pažeidimų.
A241: 33.5.2. | B241: Pagamintos iš skaidraus silikono, ar lygiavertės medžiagos atsparaus dezinfekcinėms medžiagoms ir plovikliams, skirtos sterilizacijai sočiaisiais vandens bei formaldehido garais. | H241: Pagamintos iš skaidraus silikono, atsparaus dezinfekcinėms medžiagoms ir plovikliams, skirtos sterilizacijai sočiaisiais vandens bei formaldehido garais.
A242: 33.5.3. | B242: Netrukdo sterilizacijos agentui prasiskverbti prie instrumentų dengiamų dalių. | H242: Netrukdo sterilizacijos agentui prasiskverbti prie instrumentų dengiamų dalių.
A243: 33.5.4. | B243: Ženklintos CE (pagal MDD 93/42 EEB). | H243: Ženklintos CE (pagal MDD 93/42 EEB).
A244: 33.5.5. | B244: Apsaugos dedamos ant instrumentų, jų rinkinių. | H244: Apsaugos dedamos ant instrumentų, jų rinkinių. Psl. Nr. 203-208; 211
... 70 more rows

Sheet Subtiekėjai ir priedai
A2: Ūkio subjektai (įskaitant kvazisubtiekėjus - fiziniai asmenys, kuriuos ketinama įdarbinti pirkimo laimėjimo atveju), kurių pajėgumais tiekėjas remiasi, kad atitiktų keliamus kvalifikacijos reikalavimus:
A5: Pavadinimas* | C5: Kodas, adresas | F5: Perduodama veikla | I5: Perduodamos veiklos dalis nuo visos pirkimo sutarties (Eur arba %) | K5: Kval. Reikalavimo Nr.
A17: Subtiekėjams / subteikėjams / subrangovams numatomos perduoti veiklos (privaloma nurodyti) ir šių ūkio subjektų pavadinimai (jei žinomi):
A19: Pavadinimas | C19: Kodas, adresas | F19: Perduodama veikla* | I19: Perduodamos veiklos dalis nuo visos pirkimo sutarties (Eur arba %)
A31: * Pildyti tuomet, jei pirkimo sutarties vykdymui bus pasitelkti subtiekėjai. Jeigu tiekėjas nenurodo subtiekėjų, laikoma, kad vykdant pirkimo sutartį jų nebus pasitelkiama.
A33: Kartu su pasiūlymu pateikiami šie dokumentai:
A35: Nr. | B35: Dokumento pavadinimas | H35: Dokumentas yra konfidencialus? Taip/Ne
A36: 1 | B36: Jungtinės veiklos kopija (jei taikoma)
A37: 2 | B37: Subtiekimo sutartis, ketinimų protokolas, preliminarios sutartys ar kiti dokumentai, patvirtinantys, kad laimėjus pirkimą tiekėjui bus prieinami kitų ūkio subjektų ištekliai (jei pasitelkiami kvalifikacijos atitikimui)
A38: 3 | B38: Pasiūlymo atitikimą pirkimo sąlygų techninei specifikacijai pagrindžiantys dokumentai
A48: Pasiūlyme nurodyta Prekės kaina, išskyrus jos sudedamąsias dalis, subtiekėjai, taip pat kita informacija, kuri teisės aktų nustatyta tvarka turi būti skelbiama arba kitokiu būdu viešai prieinama visuomenei, nėra laikoma konfidencialia informacija. Konfidencialią informaciją sudaro, visų pirma, komercinė (gamybinė) paslaptis ir konfidencialieji pasiūlymų aspektai. Informacija, kurią viešai skelbti įpareigoja Lietuvos Respublikos įstatymai, negali būti tiekėjo nurodoma kaip konfidenciali, todėl, tiekėjui nurodžius tokią informaciją kaip konfidencialią, perkančioji organizacija turi teisę ją skelbti. Jei tiekėjas nenurodo konfidencialios informacijos, laikoma, kad konfidencialios informacijos tiekėjo pasiūlyme nėra. Vadovaujantis Informacijos viešinimo Centrinėje viešųjų pirkimų informacinėje sistemoje tvarkos aprašu, patvirtintu Viešųjų pirkimų tarnybos direktoriaus 2017 m. birželio 19 d. įsakymu Nr. 1S-91 „Dėl Informacijos viešinimo Centrinėje viešųjų pirkimų informacinėje sistemoje tvarkos aprašo patvirtinimo“, perkančioji organizacija laimėjusio dalyvio pasiūlymą, išskyrus informaciją, kurią tiekėjas nurodė kaip konfidencialią, paskelbs CVP IS.
A51: Tiekėjo arba jo įgalioto asmens pareigų pavadinimas:
A53: Pasirašančio asmens vardas ir pavardė:
A100: 5051 2020-12-28 17:34:41
